fUST/lending_fUST_20250618
["ID","MTS","AMOUNT","RATE_DAILY","PERIOD"]
[366328408,1750191038536,-747.2,0.00023013,6]
[366328409,1750191038545,-182.38,0.00023013,6]
[366328410,1750191038556,-601.8,0.00023013,6]
[366328411,1750191038565,-601.34,0.00023013,6]
[366328412,1750191038575,-460.0,0.00023013,6]
[366328413,1750191038585,-460.0,0.00023013,6]
[366328414,1750191038594,-222.72,0.00023013,6]
[366328415,1750191038604,-460.0,0.00023013,6]
[366328416,1750191038613,-1345.96,0.00023013,6]
[366328417,1750191038623,-1078.79,0.00023013,6]
[366328418,1750191038632,-537.85,0.00023013,6]
[366328419,1750191038642,-460.0,0.00023013,6]
[366328420,1750191038651,-460.0,0.00023013,6]
[366328421,1750191038660,-500.0,0.00023027,2]
[366328422,1750191038669,-500.0,0.00023029,2]
[366328423,1750191038679,-500.0,0.00023041,2]
[366328424,1750191038688,-2615.45,0.000231,7]
[366328425,1750191038698,-30622.3,0.000231,7]
[366328426,1750191038707,-160.0,0.000231,7]
[366328427,1750191038717,-168.0,0.00023106,2]
[366328428,1750191038726,-460.0,0.00023123,6]
[366328429,1750191038735,-1222.16,0.00023123,6]
[366328430,1750191038745,-1066.13,0.00023123,6]
[366328431,1750191038755,-807.16,0.00023123,6]
[366328432,1750191038765,-464.2,0.00023123,6]
[366328433,1750191038774,-574.81,0.00023123,6]
[366328434,1750191038784,-460.0,0.00023123,6]
[366328435,1750191038793,-747.2,0.00023123,6]
[366328436,1750191038803,-601.34,0.00023123,6]
[366328437,1750191038812,-460.0,0.00023123,6]
[366328438,1750191038823,-460.0,0.00023123,6]
[366328439,1750191038833,-460.0,0.00023123,6]
[366328440,1750191038842,-504.67185443,0.00023123,6]
[366328441,1750191038915,-5000.0,0.0002032,2]
[366328442,1750191038926,-460.0,0.00022356,6]
[366328443,1750191038936,-460.0,0.00022465,6]
[366328444,1750191038946,-460.0,0.00022575,6]
[366328445,1750191038955,-460.0,0.00022684,6]
[366328446,1750191038965,-185.9,0.00022794,6]
[366328447,1750191038975,-841.28814557,0.00023123,6]
[366328448,1750191038984,-1078.79,0.00023123,6]
[366328449,1750191038994,-537.85,0.00023123,6]
[366328450,1750191039004,-432.39,0.00023123,6]
[366328451,1750191039013,-277.26,0.00023123,6]
[366328452,1750191039023,-500.0,0.00023126,2]
[366328453,1750191039033,-175.9,0.00023173,6]
[366328454,1750191039043,-460.0,0.00023232,6]
[366328455,1750191039052,-1222.16,0.00023232,6]
[366328456,1750191039062,-1066.13,0.00023232,6]
[366328457,1750191039072,-807.16,0.00023232,6]
[366328458,1750191039081,-464.2,0.00023232,6]
[366328459,1750191039091,-460.0,0.00023232,6]
[366328460,1750191039101,-747.2,0.00023232,6]
[366328461,1750191039111,-601.34,0.00023232,6]
[366328462,1750191039123,-460.0,0.00023232,6]
[366328463,1750191039133,-465.54,0.00023232,6]
[366328464,1750191039143,-460.0,0.00023232,6]
[366328465,1750191039153,-1345.96,0.00023232,6]
[366328466,1750191039163,-1078.79,0.00023232,6]
[366328467,1750191039172,-537.85,0.00023232,6]
[366328468,1750191039181,-500.0,0.00023274,2]
[366328469,1750191039191,-168.0,0.00023293,2]
[366328470,1750191039201,-500.0,0.00023309,2]
[366328471,1750191039211,-500.0,0.00023334,2]
[366328472,1750191039220,-175.9,0.00023339,6]
[366328473,1750191039230,-460.0,0.00023342,6]
[366328474,1750191039240,-1222.16,0.00023342,6]
[366328475,1750191039249,-1066.13,0.00023342,6]
[366328476,1750191039259,-807.16,0.00023342,6]
[366328477,1750191039269,-464.2,0.00023342,6]
[366328478,1750191039278,-254.3,0.00023342,6]
[366328479,1750191039288,-747.2,0.00023342,6]
[366328480,1750191039297,-601.34,0.00023342,6]
[366328481,1750191039306,-460.0,0.00023342,6]
[366328482,1750191039316,-460.0,0.00023342,6]
[366328483,1750191039326,-1345.96,0.00023342,6]
[366328484,1750191039335,-1078.79,0.00023342,6]
[366328485,1750191039344,-537.85,0.00023342,6]
[366328486,1750191039354,-156.851535,0.00023342,2]
[366328487,1750191039364,-500.0,0.00023356,2]
[366328488,1750191039376,-160.0,0.00023396,2]
[366328489,1750191039385,-816.95,0.000234,7]
[366328490,1750191039395,-500.0,0.000234,2]
[366328491,1750191039409,-500.0,0.000234,2]
[366328492,1750191039419,-362.30006426,0.00023433,2]
[366328493,1750191039428,-207.4,0.00023433,2]
[366328494,1750191039439,-168.0,0.00023436,2]
[366328495,1750191039459,-551.0,0.00023441,2]
[366328496,1750191039476,-460.0,0.00023452,6]
[366328497,1750191039486,-1222.16,0.00023452,6]
[366328498,1750191039496,-1066.13,0.00023452,6]
[366328499,1750191039511,-807.16,0.00023452,6]
[366328500,1750191039521,-464.2,0.00023452,6]
[366328501,1750191039531,-747.2,0.00023452,6]
[366328502,1750191039542,-601.34,0.00023452,6]
[366328503,1750191039553,-260.18,0.00023452,6]
[366328504,1750191039563,-460.0,0.00023452,6]
[366328505,1750191039574,-1345.96,0.00023452,6]
[366328506,1750191039584,-1078.79,0.00023452,6]
[366328507,1750191039595,-537.85,0.00023452,6]
[366328508,1750191039605,-175.9,0.00023505,6]
[366328509,1750191039618,-500.0,0.0002356,2]
[366328510,1750191039628,-200.0,0.00023561,6]
[366328511,1750191039637,-460.0,0.00023561,6]
[366328512,1750191039647,-1222.16,0.00023561,6]
[366328514,1750191039657,-1066.13,0.00023561,6]
[366328516,1750191039667,-807.16,0.00023561,6]
[366328517,1750191039677,-464.2,0.00023561,6]
[366328518,1750191039688,-747.2,0.00023561,6]
[366328519,1750191039698,-601.34,0.00023561,6]
[366328521,1750191039707,-460.0,0.00023561,6]
[366328522,1750191039718,-1345.96,0.00023561,6]
[366328523,1750191039728,-1078.79,0.00023561,6]
[366328524,1750191039738,-537.85,0.00023561,6]
[366328525,1750191039747,-19095.66007,0.00023599,2]
[366328526,1750191039757,-500.0,0.00023638,2]
[366328527,1750191039767,-156.851535,0.00023644,2]
[366328528,1750191039777,-500.0,0.00023646,2]
[366328529,1750191039787,-500.0,0.00023657,2]
[366328530,1750191039797,-500.0,0.00023657,2]
[366328532,1750191039807,-500.0,0.00023657,2]
[366328533,1750191039816,-500.0,0.00023657,2]
[366328534,1750191039826,-600.0,0.00023657,2]
[366328535,1750191039836,-500.0,0.00023657,2]
[366328536,1750191039846,-500.0,0.00023657,2]
[366328537,1750191039855,-500.0,0.00023657,2]
[366328538,1750191039865,-500.0,0.00023657,2]
[366328539,1750191039874,-175.9,0.00023671,6]
[366328540,1750191039884,-460.0,0.00023671,6]
[366328541,1750191039893,-1222.16,0.00023671,6]
[366328542,1750191039902,-1066.13,0.00023671,6]
[366328543,1750191039912,-807.16,0.00023671,6]
[366328545,1750191039921,-464.2,0.00023671,6]
[366328547,1750191039931,-747.2,0.00023671,6]
[366328549,1750191039940,-601.34,0.00023671,6]
[366328551,1750191039950,-460.0,0.00023671,6]
[366328553,1750191039959,-1345.96,0.00023671,6]
[366328555,1750191039970,-1078.79,0.00023671,6]
[366328557,1750191039980,-537.85,0.00023671,6]
[366328559,1750191039989,-500.0,0.00023689,2]
[366328561,1750191039999,-318.82,0.00023761,2]
[366328564,1750191040009,-2000.0,0.0002378,7]
[366328566,1750191040019,-2000.0,0.0002378,7]
[366328568,1750191040029,-2000.0,0.0002378,7]
[366328570,1750191040038,-2000.0,0.0002378,7]
[366328572,1750191040047,-2122.22143324,0.0002378,7]
[366328574,1750191040057,-212.47,0.0002378,6]
[366328576,1750191040067,-1222.16,0.0002378,6]
[366328578,1750191040076,-1066.13,0.0002378,6]
[366328580,1750191040086,-807.16,0.0002378,6]
[366328582,1750191040095,-464.2,0.0002378,6]
[366328584,1750191040104,-747.2,0.0002378,6]
[366328586,1750191040114,-601.34,0.0002378,6]
[366328588,1750191040124,-460.0,0.0002378,6]
[366328590,1750191040133,-1345.96,0.0002378,6]
[366328592,1750191040143,-1078.79,0.0002378,6]
[366328594,1750191040152,-537.85,0.0002378,6]
[366328595,1750191040162,-420.0,0.00023816,2]
[366328598,1750191040171,-227.0,0.00023816,2]
[366328600,1750191040181,-175.9,0.00023837,6]
[366328602,1750191040190,-500.0,0.00023838,2]
[366328603,1750191040201,-1222.16,0.0002389,6]
[366328605,1750191040210,-1066.13,0.0002389,6]
[366328607,1750191040220,-807.16,0.0002389,6]
[366328609,1750191040229,-464.2,0.0002389,6]
[366328611,1750191040238,-747.2,0.0002389,6]
[366328612,1750191040248,-601.34,0.0002389,6]
[366328614,1750191040258,-460.0,0.0002389,6]
[366328615,1750191040267,-1345.96,0.0002389,6]
[366328616,1750191040277,-1078.79,0.0002389,6]
[366328617,1750191040286,-537.85,0.0002389,6]
[366328618,1750191040295,-500.0,0.00023912,2]
[366328619,1750191040305,-541.53280507,0.00023948,2]
[366328620,1750191040314,-304.26549004,0.00023948,2]
[366328622,1750191040324,-500.0,0.00023979,2]
[366328623,1750191040334,-171.22945417,0.00023985,2]
[366328624,1750191040343,-382.59,0.0002399,10]
[366328625,1750191040353,-17562.46471126,0.00024,2]
[366328626,1750191040363,-3000.0,0.00024,2]
[366328627,1750191040376,-202.43673406,0.00024,2]
[366328628,1750191040386,-1222.16,0.00024,6]
[366328629,1750191040398,-1066.13,0.00024,6]
[366328630,1750191040408,-807.16,0.00024,6]
[366328631,1750191040419,-464.2,0.00024,6]
[366328632,1750191040429,-747.2,0.00024,6]
[366328633,1750191040440,-601.34,0.00024,6]
[366328634,1750191040450,-460.0,0.00024,6]
[366328635,1750191040461,-1345.96,0.00024,6]
[366328636,1750191040471,-1078.79,0.00024,6]
[366328637,1750191040481,-537.85,0.00024,6]
[366328638,1750191040491,-175.9,0.00024003,7]
[366328639,1750191040501,-3000.0,0.0002401,2]
[366328640,1750191040511,-3000.0,0.0002402,2]
[366328641,1750191040521,-500.0,0.00024028,2]
[366328642,1750191040532,-3000.0,0.0002403,2]
[366328643,1750191040543,-3000.0,0.0002404,2]
[366328644,1750191040556,-3000.0,0.0002405,2]
[366328645,1750191040566,-3000.0,0.0002406,2]
[366328646,1750191040576,-3000.0,0.0002407,2]
[366328647,1750191040586,-500.0,0.00024073,2]
[366328648,1750191040596,-507.4259494,0.00024073,2]
[366328649,1750191040606,-500.0,0.00024073,2]
[366328650,1750191040615,-315.78308288,0.00024073,2]
[366328651,1750191040626,-500.0,0.00024073,2]
[366328652,1750191040636,-500.0,0.00024073,2]
[366328653,1750191040646,-500.0,0.00024073,2]
[366328654,1750191040656,-500.0,0.00024073,2]
[366328655,1750191040666,-500.0,0.00024073,2]
[366328656,1750191040677,-3000.0,0.0002408,2]
[366328657,1750191040686,-3000.0,0.0002409,2]
[366328658,1750191040696,-3000.0,0.000241,2]
[366328659,1750191040706,-949.89,0.000241,2]
[366328660,1750191040716,-2615.45,0.000241,7]
[366328661,1750191040726,-30622.3,0.000241,7]
[366328662,1750191040736,-1222.16,0.00024109,6]
[366328663,1750191040746,-1066.13,0.00024109,6]
[366328664,1750191040755,-807.16,0.00024109,6]
[366328665,1750191040764,-464.2,0.00024109,6]
[366328666,1750191040774,-747.2,0.00024109,6]
[366328667,1750191040783,-601.34,0.00024109,6]
[366328668,1750191040793,-275.93,0.00024109,6]
[366328669,1750191040802,-1345.96,0.00024109,6]
[366328670,1750191040812,-1078.79,0.00024109,6]
[366328671,1750191040822,-537.85,0.00024109,6]
[366328672,1750191040832,-3000.0,0.0002411,2]
[366328673,1750191040841,-3000.0,0.0002412,2]
[366328674,1750191040851,-3000.0,0.0002413,2]
[366328675,1750191040860,-3000.0,0.0002414,2]
[366328676,1750191040871,-3000.0,0.0002415,2]
[366328677,1750191040880,-3000.0,0.0002416,2]
[366328678,1750191040890,-3000.0,0.0002417,2]
[366328679,1750191040900,-175.9,0.0002417,7]
[366328680,1750191040909,-500.0,0.00024173,2]
[366328681,1750191040919,-3000.0,0.0002418,2]
[366328682,1750191040930,-3000.0,0.0002419,2]
[366328683,1750191040940,-365.4795681,0.00024192,2]
[366328684,1750191040949,-365.4795681,0.00024192,2]
[366328685,1750191040959,-365.4795681,0.00024192,2]
[366328686,1750191040969,-3000.0,0.000242,2]
[366328687,1750191040979,-1000.0,0.00024205,2]
[366328688,1750191040988,-1000.0,0.00024205,2]
[366328689,1750191041003,-1000.0,0.00024205,2]
[366328690,1750191041013,-1000.0,0.00024205,2]
[366328691,1750191041023,-1200.0,0.00024205,2]
[366328692,1750191041034,-1112.42713456,0.00024205,2]
[366328693,1750191041044,-1000.0,0.00024205,2]
[366328694,1750191041054,-1000.0,0.00024205,2]
[366328695,1750191041063,-1000.0,0.00024205,2]
[366328696,1750191041073,-3000.0,0.0002421,2]
[366328697,1750191041083,-1222.16,0.00024219,6]
[366328698,1750191041092,-1066.13,0.00024219,6]
[366328699,1750191041102,-807.16,0.00024219,6]
[366328700,1750191041112,-464.2,0.00024219,6]
[366328701,1750191041122,-747.2,0.00024219,6]
[366328702,1750191041133,-601.34,0.00024219,6]
[366328703,1750191041143,-1345.96,0.00024219,6]
[366328704,1750191041153,-1078.79,0.00024219,6]
[366328705,1750191041163,-537.85,0.00024219,6]
[366328706,1750191041310,-3000.0,0.0002422,2]
[366328707,1750191041320,-3000.0,0.0002423,2]
[366328708,1750191041330,-3000.0,0.0002424,2]
[366328709,1750191041339,-3000.0,0.0002425,2]
[366328710,1750191041350,-3000.0,0.0002426,2]
[366328711,1750191041360,-3000.0,0.0002427,2]
[366328712,1750191041372,-3000.0,0.0002428,2]
[366328713,1750191041383,-3000.0,0.0002429,2]
[366328714,1750191041393,-964.514,0.00024294,2]
[366328715,1750191041403,-653.0,0.00024294,2]
[366328716,1750191041414,-2160.0,0.00024294,2]
[366328717,1750191041425,-500.0,0.00024298,2]
[366328718,1750191041436,-3000.0,0.000243,2]
[366328719,1750191041448,-3000.0,0.0002431,2]
[366328720,1750191041458,-168.0,0.00024315,2]
[366328721,1750191041468,-3000.0,0.0002432,2]
[366328722,1750191041478,-500.0,0.00024324,2]
[366328723,1750191041488,-1222.16,0.00024328,6]
[366328724,1750191041498,-1066.13,0.00024328,6]
[366328725,1750191041508,-807.16,0.00024328,6]
[366328726,1750191041518,-464.2,0.00024328,6]
[366328727,1750191041528,-747.2,0.00024328,6]
[366328728,1750191041538,-601.34,0.00024328,6]
[366328729,1750191041547,-1345.96,0.00024328,6]
[366328730,1750191041557,-1078.79,0.00024328,6]
[366328731,1750191041567,-537.85,0.00024328,6]
[366328732,1750191041577,-3000.0,0.0002433,2]
[366328733,1750191041586,-175.9,0.00024336,7]
[366328734,1750191041596,-3000.0,0.0002434,2]
[366328735,1750191041605,-2200.0,0.00024349,2]
[366328736,1750191041614,-3000.0,0.0002435,2]
[366328737,1750191041624,-459.1516927,0.00024356,2]
[366328738,1750191041633,-153.0,0.00024356,2]
[366328739,1750191041643,-176.2005054,0.00024356,2]
[366328740,1750191041652,-573.4653004,0.00024356,2]
[366328741,1750191041663,-153.0,0.00024356,2]
[366328742,1750191041672,-153.0,0.00024356,2]
[366328743,1750191041681,-3000.0,0.0002436,2]
[366328744,1750191041692,-3000.0,0.0002437,2]
[366328745,1750191041701,-3000.0,0.0002438,2]
[366328746,1750191041711,-500.0,0.00024385,2]
[366328747,1750191041721,-3000.0,0.0002439,2]
[366328748,1750191041731,-3000.0,0.000244,2]
[366328749,1750191041740,-150.0,0.000244,5]
[366328750,1750191041750,-4003.214324,0.0002441,2]
[366328751,1750191041759,-1222.22709945,0.00024438,6]
[366328752,1750191041768,-1066.29,0.00024438,6]
[366328753,1750191041777,-807.27,0.00024438,6]
[366328754,1750191041786,-464.42898988,0.00024438,6]
[366328755,1750191041796,-747.33,0.00024438,6]
[366328756,1750191041805,-601.57808169,0.00024438,6]
[366328757,1750191041814,-1346.11,0.00024438,6]
[366328758,1750191041823,-1078.94,0.00024438,6]
[366328759,1750191041833,-538.04180765,0.00024438,6]
[366328760,1750191041842,-716.260681,0.000245,3]
[366328761,1750191041851,-816.95,0.000245,7]
[366328762,1750191041861,-1000.0,0.000245,2]
[366328763,1750191041870,-175.9,0.00024502,7]
[366328764,1750191041879,-900.0,0.00024574,2]
[366328765,1750191041888,-2000.0,0.000246,2]
[366328766,1750191041898,-500.0,0.00024621,2]
[366328767,1750191041907,-1000.0,0.00024621,2]
[366328768,1750191041916,-1000.0,0.00024621,2]
[366328769,1750191041925,-500.0,0.00024621,2]
[366328770,1750191041934,-1003.23448482,0.00024621,2]
[366328771,1750191041943,-551.40217156,0.00024621,2]
[366328772,1750191041952,-500.0,0.00024637,2]
[366328773,1750191041961,-175.9,0.00024668,7]
[366328774,1750191041970,-1084.74449099,0.00024721,2]
[366328775,1750191041979,-800.0,0.00024736,2]
[366328776,1750191041988,-1010.02014759,0.00024753,2]
[366328777,1750191041998,-591.1869642,0.00024753,2]
[366328778,1750191042007,-1500.0,0.00024753,2]
[366328779,1750191042016,-1800.0,0.00024753,2]
[366328780,1750191042025,-504.27480815,0.00024753,2]
[366328781,1750191042034,-1500.0,0.00024753,2]
[366328782,1750191042043,-1528.37945555,0.00024753,2]
[366328783,1750191042052,-160.0,0.00024766,2]
[366328784,1750191042061,-151.0,0.00024768,2]
[366328785,1750191042070,-151.0,0.00024768,2]
[366328786,1750191042078,-151.0,0.00024768,2]
[366328787,1750191042088,-151.0,0.00024768,2]
[366328788,1750191042097,-500.0,0.00024768,2]
[366328789,1750191042106,-245.0,0.00024768,2]
[366328790,1750191042116,-151.0,0.00024768,2]
[366328791,1750191042126,-245.0,0.00024768,2]
[366328792,1750191042135,-152.19137071,0.00024768,2]
[366328793,1750191042144,-159.78301553,0.00024768,2]
[366328794,1750191042153,-152.41493749,0.00024768,2]
[366328795,1750191042162,-209.3569613,0.00024768,2]
[366328796,1750191042173,-151.0,0.00024768,2]
[366328797,1750191042182,-800.0,0.00024772,2]
[366328798,1750191042192,-200.0,0.0002478,11]
[366328799,1750191042201,-151.0,0.00024795,2]
[366328800,1750191042210,-151.0,0.00024795,2]
[366328801,1750191042219,-198.83854736,0.00024795,2]
[366328802,1750191042228,-151.0,0.00024795,2]
[366328803,1750191042237,-500.0,0.00024795,2]
[366328804,1750191042246,-151.0,0.00024795,2]
[366328805,1750191042256,-2000.0,0.000248,2]
[366328806,1750191042266,-357.19,0.000248,31]
[366328807,1750191042275,-357.19,0.000248,31]
[366328808,1750191042284,-357.19,0.000248,31]
[366328809,1750191042294,-357.19,0.000248,31]
[366328810,1750191042303,-357.19,0.000248,31]
[366328811,1750191042312,-357.19,0.000248,31]
[366328812,1750191042322,-357.19,0.000248,31]
[366328813,1750191042332,-357.19,0.000248,31]
[366328814,1750191042342,-357.19,0.000248,31]
[366328815,1750191042351,-357.19,0.000248,31]
[366328816,1750191042361,-357.19,0.000248,31]
[366328817,1750191042372,-357.19,0.000248,31]
[366328818,1750191042383,-357.19,0.000248,31]
[366328819,1750191042393,-357.19,0.000248,31]
[366328820,1750191042403,-357.19,0.000248,31]
[366328821,1750191042413,-357.19,0.000248,31]
[366328822,1750191042424,-215.0738,0.00024802,2]
[366328823,1750191042434,-210.4705419,0.00024823,2]
[366328824,1750191042443,-151.0,0.00024823,2]
[366328825,1750191042452,-198.0,0.00024823,2]
[366328826,1750191042463,-299.394,0.00024823,2]
[366328827,1750191042472,-151.0,0.00024823,2]
[366328828,1750191042482,-175.9,0.00024834,7]
[366328829,1750191042493,-500.0,0.00024844,2]
[366328830,1750191042503,-198.0,0.0002485,2]
[366328831,1750191042512,-151.0,0.0002485,2]
[366328832,1750191042522,-23485.99,0.0002487,2]
[366328833,1750191042531,-151.0,0.00024878,2]
[366328834,1750191042542,-252.0,0.00024898,7]
[366328835,1750191042551,-781.58480232,0.000249,2]
[366328837,1750191042562,-245.0,0.00024905,2]
[366328839,1750191042572,-781.58480226,0.00024919,2]
[366328840,1750191042581,-169.95627862,0.00024925,2]
[366328841,1750191042592,-781.58480226,0.00024938,2]
[366328842,1750191042601,-781.58480226,0.00024956,2]
[366328843,1750191042611,-500.0,0.0002496,3]
[366328844,1750191042621,-500.0,0.0002497,3]
[366328845,1750191042631,-500.0,0.00024973,2]
[366328846,1750191042642,-781.58480226,0.00024975,2]
[366328847,1750191042652,-500.0,0.00024979,3]
[366328848,1750191042662,-1000.0,0.0002498,3]
[366328850,1750191042671,-781.58480226,0.00024994,2]
[366328851,1750191042680,-7032.06260353,0.00025,2]
[366328852,1750191042690,-17130.90730682,0.00025,2]
[366328853,1750191042701,-472438.36805305,0.00025,30]
[366328854,1750191042775,-50101.34115324,0.00025,30]
[366328859,1750191415486,256.041413,0.00013699,2]
[366328860,1750191941106,-5000.0,0.00019588,2]
[366328861,1750191941129,-256.041413,0.00020187,2]
[366328862,1750191941159,-265.7427285,0.000209,4]
[366328863,1750191941188,-265.74272821,0.00021072,4]
[366328864,1750191941211,-500.0,0.00021164,2]
[366328865,1750191941240,-265.74272821,0.00021245,4]
[366328866,1750191941269,-265.74272821,0.00021417,5]
[366328867,1750191941297,-265.74272821,0.0002159,5]
[366328868,1750191941319,-160.0,0.00021693,2]
[366328869,1750191941343,-481.78844993,0.00021759,2]
[366328870,1750191941372,-265.74272821,0.00021762,5]
[366328871,1750191941397,-300.0,0.00021915,2]
[366328872,1750191941423,-600.0,0.00021916,2]
[366328873,1750191941446,-300.0,0.00021916,2]
[366328874,1750191941468,-365.64587792,0.00021916,2]
[366328875,1750191941492,-500.0,0.00021916,2]
[366328876,1750191941516,-519.25576082,0.00021916,2]
[366328877,1750191941539,-500.0,0.00021916,2]
[366328878,1750191941565,-500.0,0.00021916,2]
[366328879,1750191941590,-500.0,0.00021916,2]
[366328880,1750191941616,-500.0,0.00021916,2]
[366328881,1750191941638,-160.454,0.00021916,2]
[366328882,1750191941666,-460.0,0.00021917,6]
[366328883,1750191941689,-410.0,0.00021917,6]
[366328884,1750191941714,-460.0,0.00021917,6]
[366328885,1750191941737,-460.0,0.00021917,6]
[366328886,1750191941760,-460.0,0.00021917,6]
[366328887,1750191941784,-460.0,0.00021917,6]
[366328888,1750191941807,-357.85464959,0.00021917,6]
[366328889,1750191941832,-460.0,0.00021917,6]
[366328890,1750191941855,-460.0,0.00021917,6]
[366328891,1750191941878,-447.06430385,0.00021917,6]
[366328892,1750191941900,-460.0,0.00021917,6]
[366328893,1750191941924,-432.32519125,0.00021917,6]
[366328894,1750191941947,-460.0,0.00021917,6]
[366328895,1750191941971,-460.0,0.00021917,6]
[366328896,1750191941992,-460.0,0.00021917,6]
[366328897,1750191942014,-440.0,0.00021917,6]
[366328898,1750191942036,-294.08747821,0.00021917,6]
[366328899,1750191942058,-460.0,0.00021917,6]
[366328900,1750191942079,-420.0,0.00021917,6]
[366328901,1750191942101,-460.0,0.00021917,6]
[366328902,1750191942122,-460.0,0.00021917,6]
[366328903,1750191942144,-460.0,0.00021917,6]
[366328904,1750191942167,-500.0,0.00021917,6]
[366328905,1750191942189,-500.0,0.00021917,6]
[366328906,1750191942210,-460.0,0.00021917,6]
[366328907,1750191942232,-460.0,0.00021917,6]
[366328908,1750191942253,-263.93283531,0.00021917,6]
[366328909,1750191942273,-460.0,0.00021917,6]
[366328910,1750191942294,-460.0,0.00021917,6]
[366328911,1750191942472,-460.0,0.00021917,6]
[366328912,1750191942492,-460.0,0.00021917,6]
[366328913,1750191942513,-460.0,0.00021917,6]
[366328914,1750191942534,-430.0,0.00021917,6]
[366328915,1750191942555,-460.0,0.00021917,6]
[366328916,1750191942574,-354.25513656,0.00021917,6]
[366328917,1750191942603,-460.0,0.00021917,6]
[366328918,1750191942628,-460.0,0.00021917,6]
[366328919,1750191942651,-460.0,0.00021917,6]
[366328920,1750191942679,-460.0,0.00021917,6]
[366328921,1750191942703,-300.86217429,0.00021917,6]
[366328922,1750191942725,-460.0,0.00021917,6]
[366328923,1750191942747,-474.52407224,0.00021917,6]
[366328924,1750191942770,-285.13,0.00021917,6]
[366328925,1750191942793,-460.0,0.00021917,6]
[366328926,1750191942817,-460.0,0.00021917,6]
[366328927,1750191942839,-460.0,0.00021917,6]
[366328928,1750191942861,-460.0,0.00021917,6]
[366328929,1750191942884,-462.72220538,0.00021917,6]
[366328930,1750191942906,-460.0,0.00021917,6]
[366328931,1750191942930,-460.0,0.00021917,6]
[366328932,1750191942953,-584.74404832,0.00021917,6]
[366328933,1750191942975,-460.0,0.00021917,6]
[366328934,1750191942997,-460.0,0.00021917,6]
[366328935,1750191943020,-460.0,0.00021917,6]
[366328936,1750191943042,-460.0,0.00021917,6]
[366328937,1750191943064,-460.0,0.00021917,6]
[366328938,1750191943085,-460.0,0.00021917,6]
[366328939,1750191943107,-420.0,0.00021917,6]
[366328940,1750191943129,-460.0,0.00021917,6]
[366328941,1750191943151,-460.0,0.00021917,6]
[366328942,1750191943176,-460.0,0.00021917,6]
[366328943,1750191943197,-430.0,0.00021917,6]
[366328944,1750191943219,-460.0,0.00021917,6]
[366328945,1750191943241,-460.0,0.00021917,6]
[366328946,1750191943262,-440.64958816,0.00021917,6]
[366328947,1750191943285,-460.0,0.00021917,6]
[366328948,1750191943306,-460.0,0.00021917,6]
[366328949,1750191943328,-460.0,0.00021917,6]
[366328950,1750191943349,-245.9579736,0.00021917,6]
[366328951,1750191943369,-460.0,0.00021917,6]
[366328952,1750191943389,-290.0,0.00021917,6]
[366328953,1750191943411,-460.0,0.00021917,2]
[366328954,1750191943433,-257.04684791,0.00021917,6]